bitfinex/quotes_SOLUSD_20240808
["timestamp","ask_amount","ask_price","bid_price","bid_amount"]
[1723124346741,45.0,156.57,156.42,20.0]
[1723124346940,0.17,156.56,156.42,20.0]
[1723124347165,0.17,156.57,156.42,20.0]
[1723124347475,15.0245,156.59,156.48,42.95]
[1723124348343,15.0245,156.59,156.49,20.0]
[1723124348769,15.0245,156.59,156.5,45.34]
[1723124348985,15.0245,156.59,156.52,42.95]
[1723124349167,15.0245,156.59,156.53,65.34]
[1723124349475,15.0245,156.59,156.53,20.0]
[1723124349769,15.0245,156.59,156.54,45.0]
[1723124349961,15.0245,156.59,156.55,20.0]
[1723124350151,15.0245,156.59,156.5,0.34]
[1723124350561,15.0245,156.59,156.44,42.95]
[1723124350786,15.0245,156.59,156.45,20.0]
[1723124351287,45.0,156.58,156.44,45.56589764]
[1723124351459,15.0245,156.59,156.44,2.61589764]
[1723124351658,15.0245,156.59,156.48,42.95]
[1723124351854,15.0245,156.59,156.48,62.95]
[1723124352083,15.0245,156.59,156.52,42.95]
[1723124352282,6.1976,156.65,156.53,20.0]
[1723124352504,15.0472,156.67,156.55,62.95]
[1723124352783,15.0472,156.67,156.56,65.34]
[1723124352956,15.0472,156.67,156.57,0.79606984]
[1723124353159,15.0472,156.67,156.58,0.34]
[1723124353379,15.0472,156.67,156.56,45.0]
[1723124353587,15.0472,156.67,156.57,0.17]
[1723124353790,15.0472,156.67,156.57,0.34]
[1723124354087,15.0472,156.67,156.56,45.0]
[1723124354289,15.0472,156.67,156.57,0.34]
[1723124354594,15.0472,156.67,156.57,0.17]
[1723124354761,15.0472,156.67,156.54,1.2767989]
[1723124354957,15.0472,156.67,156.55,0.34]
[1723124355158,15.0472,156.67,156.55,1.27703596]
[1723124355388,53.3572,156.67,156.53,42.95]
[1723124355571,53.3572,156.67,156.47,20.0]
[1723124355572,44.6939,156.65,156.48,62.95]
[1723124355777,0.17,156.64,156.48,42.95]
[1723124356108,15.0472,156.67,156.51,20.0]
[1723124356386,0.17,156.66,156.53,42.95]
[1723124356765,15.0472,156.67,156.54,1.04629787]
[1723124356966,15.0472,156.67,156.55,21.04623103]
[1723124357171,15.0472,156.67,156.56,45.34]
[1723124357468,15.0472,156.67,156.57,42.95]
[1723124357695,15.0472,156.67,156.58,65.34]
[1723124357862,15.0472,156.67,156.58,20.0]
[1723124358374,15.0472,156.67,156.59,45.17]
[1723124358586,15.0472,156.67,156.59,45.34]
[1723124358892,0.8395072,156.68,156.61,42.95]
[1723124359107,16.5482,156.73,156.62,66.44443272]
[1723124359268,16.5482,156.73,156.62,66.61443272]
[1723124360092,16.5482,156.73,156.62,65.17]
[1723124360290,54.8582,156.73,156.62,20.0]
[1723124360463,54.8582,156.73,156.57,21.2764957]
[1723124360464,16.5482,156.73,156.57,21.2764957]
[1723124360668,16.5482,156.73,156.58,41.27644253]
[1723124360979,16.5482,156.73,156.6,42.95]
[1723124361185,16.5482,156.73,156.61,21.2762338]
[1723124361498,16.5482,156.73,156.62,0.17]
[1723124361681,16.5482,156.73,156.62,45.34]
[1723124361880,16.5482,156.73,156.63,20.0]
[1723124362384,16.5482,156.73,156.64,45.0]
[1723124362692,16.5482,156.73,156.65,20.0]
[1723124363068,16.5482,156.73,156.58,40.0]
[1723124363270,16.5482,156.73,156.6,62.95]
[1723124363494,16.5482,156.73,156.61,65.17]
[1723124363678,16.5482,156.73,156.65,20.0]
[1723124363874,6.2311,156.79,156.69,20.0]
[1723124364097,15.9585,156.8,156.7,1.61558625]
[1723124364271,15.9585,156.8,156.73,20.0]
[1723124364472,15.9585,156.8,156.74,66.61526072]
[1723124364890,15.9585,156.8,156.75,20.0]
[1723124365073,15.963,156.87,156.76,65.34]
[1723124365274,15.963,156.87,156.76,65.0]
[1723124365481,54.273,156.87,156.76,20.0]
[1723124365676,38.31,156.85,156.7,20.0]
[1723124365880,44.6852,156.86,156.67,23.83520565]
[1723124366079,39.1495072,156.83,156.66,42.95]
[1723124366280,0.8395072,156.83,156.67,20.0]
[1723124366499,0.8395072,156.83,156.66,42.95]
[1723124366672,6.0739,156.8,156.64,22.54490843]
[1723124366874,6.0739,156.8,156.66,42.95]
[1723124367077,6.0739,156.8,156.66,44.18226348]
[1723124367298,6.0739,156.8,156.66,42.95]
[1723124367509,6.0739,156.8,156.67,0.60551882]
[1723124367795,6.0739,156.8,156.68,40.60548017]
[1723124367972,6.0739,156.8,156.72,20.0]
[1723124368181,16.3625,156.81,156.74,62.95]
[1723124368479,16.3625,156.81,156.75,20.17]
[1723124368799,16.3625,156.81,156.76,45.17]
[1723124369002,16.3625,156.81,156.77,20.0]
[1723124369577,16.3625,156.81,156.23,19.24060854]
[1723124369578,16.3625,156.81,156.67,20.0]
[1723124369793,16.3625,156.81,156.62,20.0]
[1723124370007,16.3625,156.81,156.56,42.95]
[1723124370008,16.3625,156.81,156.68,20.0]
[1723124370178,16.3625,156.81,156.7,20.0]
[1723124370716,16.3625,156.81,156.72,20.0]
[1723124370902,16.3625,156.81,156.73,0.17]
[1723124371089,16.3625,156.81,156.74,20.0]
[1723124371290,16.3625,156.81,156.75,0.17]
[1723124371601,16.3625,156.81,156.75,45.34]
[1723124371791,16.3625,156.81,156.77,20.0]
[1723124372498,16.3625,156.81,156.78,45.17]
[1723124372688,0.8395072,156.83,156.82,20.0]
[1723124373025,16.2573,156.87,156.82,20.0]
[1723124373310,16.2573,156.87,156.79,20.0]
[1723124373883,38.31,156.86,156.72,20.0]
[1723124374090,38.31,156.82,156.65,42.95]
[1723124374289,0.17,156.81,156.65,42.95]
[1723124374589,6.7076,156.85,156.69,20.0]
[1723124374806,6.5376,156.85,156.71,20.0]
[1723124375006,6.5376,156.85,156.73,20.0]
[1723124375213,6.5376,156.85,156.7,20.0]
[1723124375399,0.17,156.84,156.66,20.0]
[1723124375584,6.546,156.84,156.66,20.0]
[1723124375796,0.17,156.84,156.71,20.0]
[1723124376116,38.31,156.84,156.66,42.95]
[1723124376289,0.17,156.83,156.66,42.95]
[1723124376489,0.34,156.83,156.66,42.95]
[1723124376697,6.5376,156.85,156.7,42.95]
[1723124376896,6.5376,156.85,156.73,20.0]
[1723124377106,6.5376,156.85,156.74,62.95]
[1723124377313,6.5376,156.85,156.75,65.0]
[1723124377617,6.5376,156.85,156.76,20.17]
[1723124377790,16.2573,156.87,156.78,62.95]
[1723124377992,16.2573,156.87,156.79,65.34]
[1723124378402,16.2573,156.87,156.79,20.0]
[1723124378603,16.2573,156.87,156.74,20.0]
[1723124379108,16.2573,156.87,156.73,20.0]
[1723124379305,0.34,156.86,156.72,3.81519092]
[1723124379486,6.3823,156.85,156.66,20.0]
[1723124379694,45.17,156.84,156.66,20.0]
[1723124379919,0.17,156.83,156.66,22.5176083]
[1723124380623,53.717,156.82,156.66,2.5176083]
[1723124380799,53.717,156.82,156.64,62.95]
[1723124380800,45.34,156.81,156.64,62.95]
[1723124381317,53.717,156.82,156.64,62.95]
[1723124381318,15.407,156.82,156.65,40.0]
[1723124381517,15.407,156.82,156.65,20.0]
[1723124381710,15.407,156.82,156.66,20.0]
[1723124381897,38.31,156.81,156.64,2.6090395]
[1723124382096,38.31,156.79,156.6,62.95]
[1723124382310,38.31,156.77,156.6,62.95]
[1723124382520,44.69,156.74,156.56,62.95]
[1723124382854,6.5709,156.69,156.53,2.57653935]
[1723124383026,6.5709,156.69,156.48,40.0]
[1723124383027,38.31,156.66,156.48,40.0]
[1723124383205,54.9761,156.65,156.48,22.51979306]
[1723124383526,0.34,156.64,156.49,7.07271678]
[1723124383703,16.6661,156.65,156.5,1.27721467]
[1723124383897,16.6661,156.65,156.49,6.66572049]
[1723124384233,16.6661,156.65,156.51,42.95]
[1723124384400,45.34,156.64,156.49,6.66572049]
[1723124384599,83.65,156.64,156.46,42.95]
[1723124384927,83.65,156.64,156.48,6.67514321]
[1723124385298,83.65,156.64,156.46,42.95]
[1723124385619,0.34,156.64,156.48,6.67533094]
[1723124385799,0.34,156.64,156.49,0.59049361]
[1723124386197,0.34,156.64,156.5,0.34]
[1723124386509,83.65,156.64,156.5,0.17]
[1723124386818,38.31,156.62,156.48,6.67533094]
[1723124387024,6.6192,156.63,156.48,1.25491701]
[1723124387025,0.17,156.61,156.48,1.25491701]
[1723124387324,6.6192,156.63,156.49,1.25698081]
[1723124387522,6.6192,156.63,156.48,6.67636103]
[1723124387821,15.2627,156.62,156.47,42.95]
[1723124388120,15.0927,156.62,156.48,6.67617117]
[1723124388328,15.0927,156.62,156.48,7.83516137]
[1723124388506,0.17,156.61,156.48,7.83516137]
[1723124388709,0.17,156.61,156.48,1.1589902]
[1723124388908,0.34,156.61,156.47,6.67655563]
[1723124389107,53.944,156.58,156.45,0.8395072]
[1723124389320,38.31,156.56,156.45,0.8395072]
[1723124389512,0.34,156.55,156.45,0.8395072]
[1723124389703,45.34,156.55,156.45,0.8395072]
[1723124389910,0.17,156.54,156.45,0.8395072]
[1723124390306,38.31,156.52,156.34,20.0]
[1723124390523,83.65,156.51,156.34,40.0]
[1723124390705,0.17,156.51,156.36,42.95]
[1723124390910,0.34,156.52,156.36,42.95]
[1723124391312,38.65,156.52,156.34,20.0]
[1723124391505,38.31,156.5,156.34,20.0]
[1723124391828,45.34,156.49,156.34,20.0]
[1723124392230,83.65,156.49,156.33,42.95]
[1723124392926,38.31,156.47,156.33,42.95]
[1723124393111,38.31,156.47,156.32,6.67924682]
[1723124393112,45.17,156.46,156.32,6.67924682]
[1723124393317,6.5474,156.45,156.32,1.12979572]
[1723124393522,6.5474,156.45,156.29,53.11464674]
[1723124393721,6.5474,156.45,156.29,73.11464674]
[1723124393906,6.5474,156.45,156.3,1.20314692]
[1723124394630,6.5474,156.45,156.3,20.0]
[1723124394828,6.5474,156.45,156.34,20.0]
[1723124395132,6.5474,156.45,156.37,42.95]
[1723124395323,16.5985,156.48,156.38,65.34]
[1723124395522,16.5985,156.48,156.38,85.34]
[1723124395711,16.5985,156.48,156.38,65.34]
[1723124396328,16.5985,156.48,156.39,1.17344305]
[1723124396538,16.5985,156.48,156.38,65.34]
[1723124396731,16.5985,156.48,156.38,66.53284109]
[1723124396939,16.5985,156.48,156.38,65.34]
[1723124397146,16.5985,156.48,156.39,1.27829174]
[1723124397352,16.5985,156.48,156.4,0.34]
[1723124397561,16.5985,156.48,156.4,0.17]
[1723124397854,16.5985,156.48,156.39,0.17]
[1723124398057,16.5985,156.48,156.38,20.0]
[1723124398354,16.5985,156.48,156.36,1.27836343]
[1723124399034,0.17,156.47,156.29,47.51719563]
[1723124399347,0.17,156.47,156.33,0.85454176]
[1723124399576,0.17,156.47,156.34,1.20333887]
[1723124400324,16.5985,156.48,156.35,20.34]
[1723124400565,16.5985,156.48,156.36,65.0]
[1723124400729,16.5985,156.48,156.37,45.34]
[1723124400929,16.5985,156.48,156.38,20.17]
[1723124401266,16.5985,156.48,156.39,45.17]
[1723124401564,6.3911,156.47,156.29,27.51719563]
[1723124401856,38.31,156.46,156.29,20.8395072]
[1723124402028,6.2442,156.45,156.29,40.8395072]
[1723124402230,6.0742,156.45,156.29,30.0731857]
[1723124402472,6.0742,156.45,156.32,62.95]
[1723124402626,6.0742,156.45,156.32,42.95]
[1723124402956,16.301,156.43,156.29,10.0731857]
[1723124403255,16.301,156.43,156.29,3.39538428]
[1723124403465,16.301,156.43,156.29,10.0641359]
[1723124403683,0.17,156.42,156.29,0.8395072]
[1723124403965,38.31,156.4,156.29,0.8395072]
[1723124404164,45.34,156.42,156.29,0.8395072]
[1723124404165,38.31,156.38,156.29,0.8395072]
[1723124404466,22.8412,156.39,156.29,0.8395072]
[1723124404652,0.34,156.38,156.29,0.8395072]
[1723124405063,53.7,156.37,156.2,6.67632582]
[1723124405234,38.31,156.34,156.2,6.67632582]
[1723124405442,53.7,156.31,156.18,10.02182222]
[1723124405665,38.31,156.28,156.13,0.8395072]
[1723124405977,16.2872,156.21,156.13,0.8395072]
[1723124406137,38.31,156.2,156.04,42.95]
[1723124406344,45.34,156.19,156.04,42.95]
[1723124406771,83.65,156.19,156.03,10.03153949]
[1723124407082,38.31,156.17,156.03,10.03153949]
[1723124407283,0.34,156.16,156.03,1.28125932]
[1723124407441,0.17,156.16,156.03,1.28125932]
[1723124407645,6.0316,156.18,156.03,1.36938652]
[1723124408461,0.17,156.17,156.03,1.36938652]
[1723124408662,6.0316,156.18,156.03,1.36938652]
[1723124409049,16.2872,156.21,156.05,20.0]
[1723124409240,16.2872,156.21,156.06,1.28076746]
[1723124409541,38.31,156.2,156.06,1.28076746]
[1723124409745,38.31,156.18,156.03,0.0881272]
[1723124410373,16.2872,156.21,156.03,1.36920381]
[1723124410374,54.5972,156.21,156.03,1.36920381]
[1723124410663,16.2872,156.21,156.04,20.0]
[1723124410888,16.2872,156.21,156.05,1.2807116]
[1723124411053,16.2872,156.21,156.08,42.95]
[1723124411381,16.2872,156.21,156.09,0.17]
[1723124411678,16.2872,156.21,156.09,20.17]
[1723124411998,16.2872,156.21,156.09,60.17]
[1723124412169,16.2872,156.21,156.1,45.17]
[1723124412360,16.2872,156.21,156.05,45.53835586]
[1723124412361,38.31,156.2,156.05,45.53835586]
[1723124412706,38.31,156.2,156.03,0.0881272]
[1723124412857,38.31,156.2,156.03,3.93212275]
[1723124413056,16.2872,156.21,156.04,20.0]
[1723124413359,0.17,156.2,156.05,1.28077837]
[1723124413563,16.2872,156.21,156.05,21.28077837]
[1723124413763,16.2872,156.21,156.09,42.95]
[1723124413958,16.2872,156.21,156.1,1.28036812]
[1723124414299,16.2872,156.21,156.13,42.95]
[1723124414788,16.2872,156.21,156.14,65.34]
[1723124414967,16.4962,156.27,156.17,62.95]
[1723124415166,16.4962,156.27,156.19,20.0]
[1723124415360,16.4962,156.27,156.2,20.17]
[1723124415557,16.3881,156.34,156.21,107.95]
[1723124415788,16.3881,156.34,156.22,20.34]
[1723124416089,16.3881,156.34,156.23,45.0]
[1723124416385,16.3881,156.34,156.24,20.34]
[1723124416585,16.3881,156.34,156.25,45.0]
[1723124416785,16.3881,156.34,156.26,20.93928108]
[1723124416965,16.0722,156.42,156.29,42.95]
[1723124417167,16.0722,156.42,156.3,20.93885278]
[1723124417397,16.0722,156.42,156.33,42.95]
[1723124417678,16.0722,156.42,156.34,66.37224536]
[1723124417885,16.0722,156.42,156.34,65.17]
[1723124418455,16.0722,156.42,156.35,1.44865221]
[1723124418675,16.0722,156.42,156.35,0.17]
[1723124418882,16.0722,156.42,156.35,1.44824016]
[1723124419193,16.0722,156.42,156.36,0.17]
[1723124419367,16.0722,156.42,156.35,0.17]
[1723124419887,16.0722,156.42,156.34,20.0]
[1723124420189,54.3822,156.42,156.26,20.0]
[1723124420362,38.31,156.38,156.21,42.95]
[1723124420754,38.31,156.41,156.21,45.50801108]
[1723124420971,38.31,156.36,156.19,20.0]
[1723124421189,38.31,156.36,156.19,21.27972782]
[1723124421505,0.17,156.37,156.2,20.0]
[1723124421674,0.17,156.36,156.2,20.0]
[1723124421873,0.17,156.35,156.18,20.0]
[1723124422113,59.7643,156.32,156.16,62.95]
[1723124422297,21.4543,156.32,156.16,62.95]
[1723124422473,45.34,156.31,156.16,42.95]
[1723124422887,0.34,156.31,156.17,1.20247385]
[1723124423280,45.34,156.31,156.16,42.95]
[1723124423473,45.34,156.31,156.12,42.95]
[1723124423897,83.65,156.31,156.12,42.95]
[1723124424481,21.4543,156.32,156.16,62.95]
[1723124424781,21.4543,156.32,156.16,42.95]
[1723124424982,59.7643,156.32,156.16,42.95]
[1723124425508,38.31,156.31,156.13,20.0]
[1723124425809,38.31,156.29,156.1,0.0881272]
[1723124426018,38.31,156.27,156.1,0.0881272]
[1723124426190,83.65,156.26,156.1,0.0881272]
[1723124426492,0.34,156.25,156.1,0.0881272]
[1723124427103,53.5076,156.24,156.1,0.0881272]
[1723124427396,45.34,156.23,156.1,1.36874635]
[1723124427591,15.1976,156.24,156.1,1.36874635]
[1723124427803,45.34,156.23,156.1,0.0881272]
[1723124427999,0.34,156.23,156.1,0.0881272]
[1723124428291,15.1976,156.24,156.1,21.36874723]
[1723124428504,15.1976,156.24,156.12,42.95]
[1723124429018,15.1976,156.24,156.1,0.0881272]
[1723124429200,15.1976,156.24,156.13,20.0]
[1723124429395,15.1976,156.24,156.14,20.0]
[1723124429615,15.1976,156.24,156.11,1.27818304]
[1723124429805,44.8878,156.23,156.1,0.0881272]
[1723124430328,0.17,156.22,156.1,0.0881272]
[1723124430540,0.17,156.22,156.02,20.0]
[1723124430541,38.47,156.18,156.02,0.55414313]
[1723124430691,45.34,156.22,155.96,42.95]
[1723124430692,38.47,156.14,155.96,42.95]
[1723124431027,0.17,156.15,155.97,30.03588929]
[1723124431199,0.17,156.16,156.0,42.95]
[1723124431525,0.17,156.16,156.01,1.28111566]
[1723124431818,38.47,156.12,155.97,16.7002018]
[1723124431991,6.0805,156.15,155.97,16.7002018]
[1723124431992,0.17,156.11,155.97,6.66431251]
[1723124432191,0.17,156.14,155.97,10.03616575]
[1723124432492,6.0805,156.15,156.0,62.95]
[1723124432902,6.0805,156.15,156.01,20.0]
[1723124433095,6.0805,156.15,156.0,42.95]
[1723124433314,6.0805,156.15,156.01,66.54411924]
[1723124433525,6.0805,156.15,156.01,86.54411924]
[1723124433731,6.0805,156.15,156.04,42.95]
[1723124434023,6.0805,156.15,156.05,20.34]
[1723124434233,6.0805,156.15,156.06,45.0]
[1723124434418,6.0805,156.15,156.05,20.0]
[1723124434731,44.5505,156.15,156.0,42.95]
[1723124435241,44.5505,156.15,156.01,1.28139002]
[1723124435242,6.0805,156.15,156.01,1.28139002]
[1723124435411,6.0805,156.15,156.01,21.28139002]
[1723124435737,6.0805,156.15,156.0,42.95]
[1723124435926,6.0805,156.15,156.01,1.00936875]
[1723124436122,6.0805,156.15,156.0,43.96193633]
[1723124436428,6.0805,156.15,156.01,45.34]
[1723124436627,6.0805,156.15,156.02,20.0]
[1723124436932,6.0805,156.15,156.03,0.17]
[1723124437158,6.0805,156.15,156.03,45.34]
[1723124437307,6.0805,156.15,156.04,20.0]
[1723124437504,6.0805,156.15,156.05,45.0]
[1723124437705,6.0805,156.15,156.06,20.0]
[1723124438124,6.0805,156.15,156.07,45.0]
[1723124438305,6.0805,156.15,156.06,20.0]
[1723124438510,6.0805,156.15,156.07,45.0]
[1723124438736,6.0805,156.15,156.08,20.0]
[1723124438906,6.0805,156.15,156.06,20.0]
[1723124439333,6.0805,156.15,156.07,45.0]
[1723124439631,6.0805,156.15,156.08,20.0]
[1723124440026,6.0805,156.15,156.02,1.28004111]
[1723124440204,6.0805,156.15,156.03,0.17]
[1723124441020,6.0805,156.15,156.02,0.17]
[1723124441350,6.0805,156.15,156.03,20.0]
[1723124441523,6.0805,156.15,156.05,40.0]
[1723124441852,6.0873,156.22,156.12,42.95]
[1723124442027,6.0873,156.22,156.13,41.62015805]
[1723124442220,16.0023,156.24,156.14,45.0]
[1723124442416,16.0023,156.24,156.16,42.95]
[1723124442623,16.0023,156.24,156.17,66.61997833]
[1723124442824,6.0873,156.27,156.18,1.27989637]
[1723124443063,16.2545,156.31,156.2,42.95]
[1723124443342,16.2545,156.31,156.21,66.61960198]
[1723124443543,6.3832,156.34,156.23,62.95]
[1723124443847,15.2123,156.38,156.27,42.95]
[1723124444052,15.2123,156.38,156.28,86.61891283]
[1723124444231,15.2123,156.38,156.28,66.61891283]
[1723124444747,15.2123,156.38,156.28,65.34]
[1723124444952,15.2123,156.38,156.28,65.0]
[1723124445365,53.6823,156.38,156.28,20.0]
[1723124445646,15.2123,156.38,156.21,20.0]
[1723124445853,0.34,156.37,156.22,0.17]
[1723124446029,0.17,156.37,156.22,0.17]
[1723124446226,83.81,156.37,156.21,20.0]
[1723124446428,83.81,156.37,156.18,20.0]
[1723124446843,83.81,156.37,156.17,2.55530462]
[1723124447029,0.34,156.37,156.18,20.0]
[1723124447356,15.2123,156.38,156.22,20.0]
[1723124447550,15.2123,156.38,156.22,62.95]
[1723124447847,15.2123,156.38,156.24,20.0]
[1723124448051,15.2123,156.38,156.25,45.34]
[1723124448264,15.2123,156.38,156.26,20.0]
[1723124448430,15.2123,156.38,156.27,45.34]
[1723124448629,15.2123,156.38,156.28,21.27902635]
[1723124448837,15.2123,156.38,156.29,45.34]
[1723124449047,15.2123,156.38,156.3,20.0]
[1723124449253,15.2123,156.38,156.31,45.0]
[1723124449438,15.2123,156.38,156.32,20.0]
[1723124449639,15.2123,156.38,156.28,20.0]
[1723124450062,0.34,156.37,156.22,42.95]
[1723124450237,0.34,156.37,156.19,22.52880683]
[1723124450431,38.47,156.35,156.21,42.95]
[1723124450627,38.47,156.35,156.15,20.0]
[1723124450628,0.34,156.34,156.15,40.0]
[1723124450842,0.34,156.34,156.17,20.0]
[1723124451056,0.34,156.34,156.16,65.53285885]
[1723124451233,0.17,156.34,156.18,20.0]
[1723124451559,0.17,156.34,156.19,0.92479186]
[1723124451745,0.34,156.35,156.19,0.92479186]
[1723124451955,6.464,156.33,156.2,0.17]
[1723124452142,44.934,156.33,156.16,65.53285885]
[1723124452347,53.6781,156.3,156.12,44.17200625]
[1723124452555,83.81,156.29,156.1,20.0]
[1723124452860,83.81,156.29,156.08,62.95]
[1723124452861,38.47,156.25,156.08,45.55412384]
[1723124453154,6.4041,156.26,156.08,45.55412384]
[1723124453155,6.4041,156.26,156.08,65.55412384]
[1723124453468,6.4041,156.26,156.09,20.0]
[1723124453756,6.4041,156.26,156.08,42.95]
[1723124453757,6.4006,156.24,156.08,42.95]
[1723124453954,45.0,156.25,156.08,42.95]
[1723124453955,83.64,156.23,156.08,42.95]
[1723124454259,45.17,156.22,156.08,42.95]
[1723124454448,0.17,156.21,156.08,42.95]
[1723124454967,0.17,156.21,156.09,0.17]
[1723124455138,38.64,156.21,156.04,44.23077142]
[1723124455346,16.408,156.2,156.05,1.2809508]
[1723124455560,16.238,156.2,156.05,64.2309508]
[1723124455855,16.238,156.2,156.09,42.95]
[1723124456058,16.238,156.2,156.1,1.28051941]
[1723124456365,16.238,156.2,156.09,42.95]
[1723124456564,16.238,156.2,156.1,21.25664451]
[1723124456757,16.238,156.2,156.11,45.34]
[1723124456949,16.238,156.2,156.12,20.0]
[1723124457151,16.238,156.2,156.13,45.34]
[1723124457463,16.238,156.2,156.14,20.0]
[1723124457679,16.238,156.2,156.15,45.0]
[1723124457968,16.238,156.2,156.14,20.0]
[1723124458141,16.238,156.2,156.15,45.0]
[1723124458554,16.238,156.2,156.16,1.28051152]
[1723124458756,16.238,156.2,156.16,21.28051152]
[1723124458957,16.238,156.2,156.16,20.0]
[1723124459171,16.238,156.2,156.09,42.95]
[1723124459467,16.238,156.2,156.05,42.95]
[1723124459698,16.238,156.2,156.04,9.22876675]
[1723124460168,16.238,156.2,156.04,6.66396964]
[1723124460338,44.8728,156.18,156.04,6.66396964]
[1723124460542,45.17,156.17,156.02,2.54149725]
[1723124460737,6.8157,156.19,156.02,1.28094426]
[1723124460942,6.8157,156.19,156.03,20.0]
[1723124461143,6.6457,156.19,156.05,20.0]
[1723124461367,6.6457,156.19,156.09,42.95]
[1723124461660,6.6457,156.19,156.1,1.2804737]
[1723124462009,6.6457,156.19,156.11,0.34]
[1723124462261,6.5071,156.26,156.11,45.0]
[1723124462471,38.47,156.25,156.04,42.95]
[1723124462643,6.5071,156.26,156.05,45.17]
[1723124462846,12.907,156.26,156.08,42.95]
[1723124463064,6.4,156.25,156.09,45.17]
[1723124463240,45.0,156.24,156.09,46.45064918]
[1723124463446,6.5071,156.26,156.09,66.45064918]
[1723124463975,6.5071,156.26,156.12,62.95]
[1723124464274,6.5071,156.26,156.13,66.6200814]
[1723124464576,15.3831,156.27,156.16,62.95]
[1723124464744,6.262,156.32,156.18,20.0]
[1723124465086,12.6591,156.32,156.19,45.34]
[1723124465365,6.262,156.32,156.2,65.17]
[1723124465549,6.262,156.32,156.21,1.36341927]
[1723124465745,6.262,156.32,156.22,0.17]
[1723124465971,6.262,156.32,156.23,42.95]
[1723124466159,16.1245,156.34,156.24,41.53311375]
[1723124466363,16.1245,156.34,156.24,65.34]
[1723124466953,16.1245,156.34,156.24,86.61939227]
[1723124467247,6.4389,156.38,156.27,42.95]
[1723124467464,6.4389,156.38,156.24,66.61939227]
[1723124467465,44.9089,156.38,156.24,20.17]
[1723124467672,38.47,156.36,156.19,42.95]
[1723124467859,38.47,156.36,156.03,13.93193791]
[1723124467860,38.47,156.36,156.18,2.55036426]
[1723124468054,42.95,156.4,156.15,58.9273]
[1723124468055,44.5208,156.34,156.15,42.95]
[1723124468253,38.47,156.31,156.15,42.95]
[1723124468482,45.0,156.33,156.12,20.0]
[1723124468483,83.81,156.3,156.12,20.0]
[1723124468650,38.64,156.3,156.11,2.58605539]
[1723124468977,6.3988,156.28,156.09,40.0]
[1723124469157,0.34,156.27,156.09,40.0]
[1723124469361,0.34,156.27,156.08,45.55829769]
[1723124469362,38.47,156.23,156.08,45.55829769]
[1723124469678,38.47,156.21,156.04,42.95]
[1723124469970,0.34,156.2,156.04,42.95]
[1723124470159,38.64,156.22,156.04,62.95]
[1723124470350,45.17,156.21,156.04,62.95]
[1723124470550,6.4022,156.2,156.04,42.95]
[1723124470767,22.6063,156.26,156.05,0.84771223]